bitfinex-derivatives/quotes_ETHF0:USTF0_20240907
["timestamp","ask_amount","ask_price","bid_price","bid_amount"]
[1725716785719,3.02,2285.6,2285.5,3.2078]
[1725716785917,3.45754,2285.6,2285.5,3.2078]
[1725716786415,0.43756,2285.5,2285.4,0.9051]
[1725716787410,3.02,2285.6,2285.4,0.9051]
[1725716787616,3.02,2285.6,2285.4,4.55047]
[1725716788210,3.02,2285.6,2285.4,4.1129]
[1725716788413,3.45754,2285.6,2285.4,4.1129]
[1725716788612,0.43756,2285.5,2285.4,4.1129]
[1725716788920,3.45755,2285.6,2285.4,4.1129]
[1725716789219,0.43756,2285.5,2285.4,4.1129]
[1725716789419,0.43756,2285.5,2285.4,0.9051]
[1725716789820,0.43758,2285.4,2285.1,3.64542]
[1725716790118,3.45758,2285.4,2285.2,0.4245]
[1725716790816,0.4376,2285.3,2285.2,0.4245]
[1725716791017,0.43763,2285.1,2285.0,0.4635]
[1725716791216,4.59011643,2285.3,2285.2,0.43762]
[1725716791517,3.02,2285.4,2285.2,0.43761]
[1725716791719,3.02,2285.4,2285.3,0.4603]
[1725716792314,3.45758,2285.4,2285.3,0.4603]
[1725716792621,0.4376,2285.3,2285.1,3.2078]
[1725716792921,3.02,2285.4,2285.2,0.89791]
[1725716793119,3.45758,2285.4,2285.2,0.4603]
[1725716793420,3.4576,2285.4,2285.2,0.4603]
[1725716793916,6.51718121,2286.5,2285.2,0.4603]
[1725716793917,0.22330904,2286.3,2285.4,1.09395]
[1725716794116,0.22330904,2286.3,2285.3,4.376]
[1725716794117,3.02,2286.2,2285.7,3.2078]
[1725716794416,3.02,2286.2,2286.1,3.2078]
[1725716794417,7.88355464,2286.2,2286.1,3.2078]
[1725716794606,8.32097464,2286.2,2286.1,3.2078]
[1725716794810,8.32097464,2286.2,2285.8,4.119]
[1725716794811,0.43745,2286.1,2285.8,4.119]
[1725716795011,0.43746,2286.0,2285.8,4.119]
[1725716795311,0.43745,2286.1,2285.8,4.119]
[1725716795517,0.43747,2286.0,2285.8,4.119]
[1725716795919,3.45748,2285.9,2285.8,3.667]
[1725716796118,3.02,2285.9,2285.5,3.2078]
[1725716796320,0.43747,2286.0,2285.5,3.2078]
[1725716796321,3.02,2285.7,2285.5,3.2078]
[1725716796710,3.45753,2285.7,2285.5,3.2078]
[1725716797320,0.43754,2285.6,2285.5,3.2078]
[1725716797712,3.45753,2285.7,2285.5,3.2078]
[1725716798514,0.43754,2285.6,2285.5,3.2078]
[1725716798716,9.60599791,2285.6,2285.5,3.2078]
[1725716799311,0.4376,2285.3,2285.0,3.2078]
[1725716799616,3.02,2285.2,2285.0,3.2078]
[1725716800515,0.43763,2285.1,2285.0,3.2078]
[1725716800717,3.45763,2285.2,2285.0,3.2078]
[1725716801117,0.43763,2285.1,2285.0,3.2078]
[1725716801315,3.02,2285.2,2284.8,0.8857]
[1725716801316,0.43767,2284.9,2284.8,0.8857]
[1725716801532,3.45767,2284.9,2284.8,0.8857]
[1725716801722,0.43767,2284.9,2284.8,0.8857]
[1725716802118,3.4693,2285.1,2284.8,0.8857]
[1725716802426,3.02,2285.1,2285.0,3.2078]
[1725716802621,3.45763,2285.1,2285.0,3.2078]
[1725716803116,0.43766,2285.0,2284.8,0.8857]
[1725716803516,0.43767,2284.9,2284.8,0.8857]
[1725716804318,3.02,2285.1,2284.6,3.2078]
[1725716804623,5.42147747,2285.0,2284.7,0.4647]
[1725716804818,0.43768,2284.9,2284.7,0.4647]
[1725716805126,0.43778,2284.4,2284.1,3.2078]
[1725716805327,0.43772,2284.7,2284.3,0.43779]
[1725716805525,0.43772,2284.7,2284.5,3.2078]
[1725716805717,1.09415,2285.0,2284.5,3.2078]
[1725716805718,7.9658412,2284.6,2284.5,3.2078]
[1725716805918,3.02,2284.6,2284.5,3.2078]
[1725716807227,12.64663691,2284.6,2284.5,3.2078]
[1725716807732,8.26903691,2284.6,2284.5,3.2078]
[1725716808229,7.83130691,2284.6,2284.4,3.2078]
[1725716808931,7.83130691,2284.6,2284.4,3.64557]
[1725716809134,7.83130691,2284.6,2284.5,0.4686]
[1725716810031,0.43775,2284.5,2284.2,0.9025]
[1725716810226,3.02,2284.3,2284.2,0.9333]
[1725716811232,3.45779,2284.3,2284.2,0.9333]
[1725716811428,3.02,2284.3,2284.2,0.9333]
[1725716812029,3.45773,2284.6,2284.2,0.9333]
[1725716812235,3.45773,2284.6,2284.4,3.2078]
[1725716812627,0.43775,2284.5,2284.4,3.2078]
[1725716813027,3.02,2284.6,2284.4,3.2078]
[1725716813028,3.45774,2284.6,2284.4,3.2078]
[1725716813333,0.43775,2284.5,2284.4,3.2078]
[1725716813727,0.43779,2284.3,2284.2,0.9333]
[1725716813931,3.45779,2284.3,2284.2,0.9333]
[1725716814930,3.45779,2284.3,2284.1,3.2078]
[1725716815733,3.02,2284.3,2284.1,3.2078]
[1725716816039,0.43781,2284.2,2284.1,3.2078]
[1725716816239,3.4578,2284.3,2284.1,3.2078]
[1725716816437,3.2078,2284.7,2284.1,3.2078]
[1725716816638,3.45774,2284.6,2284.4,3.2078]
[1725716816943,0.43775,2284.5,2284.4,3.2078]
[1725716817234,7.7878061,2284.6,2284.0,1.74403]
[1725716817445,3.4578,2284.3,2284.0,1.74404]
[1725716817626,3.4578,2284.3,2284.2,3.2078]
[1725716817836,0.43781,2284.2,2284.0,0.8821]
[1725716818035,3.02,2284.1,2284.0,0.426]
[1725716818240,7.81982738,2284.1,2284.0,0.426]
[1725716818636,3.02,2284.1,2284.0,0.426]
[1725716820036,3.45783,2284.1,2284.0,0.426]
[1725716820242,3.02,2284.1,2284.0,0.426]
[1725716820443,12.42785419,2284.1,2283.6,0.4658]
[1725716820645,12.42785419,2284.1,2283.7,0.4291]
[1725716820646,0.43787,2283.9,2283.7,0.4291]
[1725716821039,3.02,2283.8,2283.7,0.4291]
[1725716821537,3.02,2283.8,2283.7,3.2078]
[1725716822341,3.02,2283.8,2283.3,4.0773]
[1725716822549,3.02,2283.4,2283.3,0.8695]
[1725716822746,3.02,2283.6,2283.3,8.89448]
[1725716823051,3.02,2283.6,2283.3,4.51528]
[1725716823350,3.02,2283.9,2283.4,4.3792]
[1725716823539,3.02,2284.4,2283.6,4.30261]
[1725716823738,3.02,2284.4,2284.1,3.2078]
[1725716823943,0.43778,2284.4,2284.2,0.9387]
[1725716824143,0.43776,2284.5,2284.2,0.9387]
[1725716824343,4.8205141,2284.3,2283.9,3.2078]
[1725716824540,4.8205141,2284.3,2283.4,1.13614417]
[1725716824541,4.8205141,2284.3,2284.0,3.2078]
[1725716824842,0.43777,2284.4,2284.1,0.9387]
[1725716825037,0.43774,2284.6,2284.3,3.2078]
[1725716825241,3.02,2284.4,2284.3,3.2078]
[1725716825645,3.02,2284.4,2284.3,7.5854]
[1725716825837,3.02,2284.4,2284.3,3.2078]
[1725716826660,3.02,2284.4,2284.3,7.5854]
[1725716827346,3.02,2284.4,2284.3,8.02319]
[1725716827544,3.02,2284.4,2284.3,7.5854]
[1725716827736,3.02,2284.4,2284.1,1.37652]
[1725716827937,3.02,2284.4,2284.2,3.2078]
[1725716828144,3.45777,2284.4,2284.2,3.2078]
[1725716828443,3.02,2284.4,2284.2,3.2078]
[1725716828649,3.02,2284.4,2284.2,3.6456]
[1725716828838,3.02,2284.4,2284.2,3.2078]
[1725716829040,3.45778,2284.4,2284.2,3.2078]
[1725716829448,3.02,2284.4,2284.1,0.9387]
[1725716829752,3.45781,2284.2,2284.1,0.4696]
[1725716830746,0.43785,2284.0,2283.8,0.4324]
[1725716831048,0.43786,2284.0,2283.8,0.4324]
[1725716831349,0.43784,2284.1,2283.8,3.6402]
[1725716831553,3.45782,2284.2,2283.8,4.07808]
[1725716831742,3.02,2284.2,2283.8,3.6402]
[1725716831944,0.43784,2284.1,2283.8,4.07808]
[1725716832146,3.45781,2284.2,2283.9,0.43786]
[1725716832347,3.45781,2284.2,2283.9,0.4472]
[1725716832549,3.02,2284.2,2283.9,0.4472]
[1725716832743,0.43785,2284.0,2283.9,0.4472]
[1725716833146,0.43785,2284.0,2283.9,0.2672]
[1725716834353,3.02,2284.4,2283.9,10.6456]
[1725716834544,3.02,2284.4,2284.3,0.43779]
[1725716834945,3.02,2284.4,2284.3,0.8721]
[1725716835249,3.02,2284.4,2284.3,1.30989]
[1725716835650,3.02,2284.4,2284.3,5.68749]
[1725716835852,3.02,2284.6,2284.4,0.43777]
[1725716836050,3.02,2284.6,2284.5,3.64555]
[1725716836456,3.02,2284.6,2284.5,8.02315]
[1725716836643,3.4577,2284.8,2284.5,8.02315]
[1725716836840,3.4577,2284.8,2284.5,3.64555]
[1725716837043,3.4577,2284.8,2284.5,3.2078]
[1725716837044,3.02,2284.8,2284.5,3.2078]
[1725716837440,3.02,2284.8,2284.7,0.43771]
[1725716837845,3.02,2284.8,2284.7,4.81451]
[1725716838242,3.02,2285.3,2284.7,10.3768]
[1725716838460,3.02,2285.5,2285.2,3.2078]
[1725716838751,3.02,2285.5,2285.3,0.8842]
[1725716838948,3.02,2285.5,2285.4,3.2078]
[1725716839350,3.02,2285.7,2285.4,7.583]
[1725716839554,3.02,2285.7,2285.4,3.2078]
[1725716839954,3.45754,2285.7,2285.4,3.2078]
[1725716840261,3.02,2285.5,2285.4,3.2078]
[1725716843154,3.45756,2285.5,2285.4,3.2078]
[1725716843353,3.02,2285.5,2285.4,3.2078]
[1725716843559,3.45756,2285.5,2285.4,3.2078]
[1725716845461,1.09395,2285.4,2284.8,3.2078]
[1725716845663,0.43766,2285.0,2284.8,3.2078]
[1725716845863,3.02,2285.1,2284.8,3.2078]
[1725716846063,3.45767,2284.9,2284.8,3.2078]
[1725716846268,3.45767,2284.9,2284.5,0.4365]
[1725716846269,3.02,2284.9,2284.5,3.2078]
[1725716846565,3.02,2284.9,2284.5,3.64554]
[1725716846755,0.43769,2284.8,2284.5,3.64554]
[1725716847461,3.45768,2284.9,2284.5,3.64554]
[1725716848267,3.45768,2284.9,2284.7,3.2078]
[1725716848463,3.02,2284.9,2284.4,3.6531]
[1725716848672,0.43772,2284.7,2284.4,3.6531]
[1725716848968,0.43771,2284.7,2284.4,3.6531]
[1725716849170,0.43773,2284.6,2284.4,3.6531]
[1725716849363,3.8945,2284.9,2284.4,3.6531]
[1725716849758,0.43774,2284.6,2284.4,3.6531]
[1725716849958,0.43775,2284.5,2284.4,3.6531]
[1725716850860,3.02,2284.5,2284.2,0.4297]
[1725716851060,0.43776,2284.5,2284.2,0.86751]
[1725716851266,3.45772,2284.7,2284.4,3.2078]
[1725716851464,3.45772,2284.7,2284.4,3.64557]
[1725716851662,3.45772,2284.7,2284.4,3.2078]
[1725716851866,0.43775,2284.5,2284.4,3.2078]
[1725716852366,3.45775,2284.5,2284.4,3.2078]
[1725716852573,8.49198,2284.5,2284.0,3.6706]
[1725716852768,0.4289,2284.4,2284.0,3.6706]
[1725716852970,0.4378,2284.3,2284.0,4.10844]
[1725716853171,0.4378,2284.3,2284.0,3.6706]
[1725716853369,0.86668,2284.4,2284.0,3.6706]
[1725716853573,0.86668,2284.4,2284.3,3.2078]
[1725716853765,0.4289,2284.4,2284.3,3.2078]
[1725716853965,0.86667,2284.4,2284.3,3.2078]
[1725716854576,0.43781,2284.2,2284.0,3.6706]
[1725716854772,0.4289,2284.4,2284.0,3.6706]
[1725716855279,0.43782,2284.2,2284.0,3.6706]
[1725716855474,0.43783,2284.1,2284.0,3.6706]
[1725716855880,0.43782,2284.2,2284.0,3.6706]
[1725716856170,0.43783,2284.1,2284.0,3.6706]
[1725716856377,0.43782,2284.2,2284.0,3.6706]
[1725716857370,0.43782,2284.2,2284.1,3.2078]
[1725716857673,3.02,2284.5,2284.1,3.2078]
[1725716857874,0.43778,2284.4,2284.1,3.64562]
[1725716858283,0.43779,2284.3,2284.1,3.2078]
[1725716858575,3.45776,2284.5,2284.2,0.4378]
[1725716858775,0.43778,2284.4,2284.1,3.64562]
[1725716859276,3.02,2284.5,2284.1,3.2078]
[1725716859474,3.45776,2284.5,2284.3,0.43778]
[1725716859875,0.43777,2284.4,2284.2,0.8758]
[1725716860077,0.43777,2284.4,2284.2,0.438]
[1725716860379,0.43777,2284.4,2284.2,0.8758]
[1725716860769,3.45776,2284.5,2284.2,0.8758]
[1725716861071,3.45776,2284.5,2284.4,3.2078]
[1725716861882,3.02,2284.5,2284.4,3.64557]
[1725716862182,3.45775,2284.5,2284.4,3.2078]
[1725716862372,3.02,2284.5,2284.4,3.64557]
[1725716862567,3.02,2284.7,2284.4,3.2078]
[1725716862869,3.02,2284.7,2284.5,0.4283]
[1725716863066,3.45773,2284.7,2284.5,0.4283]
[1725716863272,0.43773,2284.6,2284.5,0.4283]
[1725716863876,0.43776,2284.5,2284.3,3.6591]
[1725716864580,3.02,2284.7,2284.3,3.2078]
[1725716864783,0.43774,2284.6,2284.5,3.2078]
[1725716865685,1.70098121,2285.5,2285.0,0.43764]
[1725716865881,0.4376,2285.3,2285.0,3.64544]
[1725716866177,0.43762,2285.2,2285.1,0.4481]
[1725716866680,3.9396,2285.4,2285.1,0.4481]
[1725716866978,3.45759,2285.4,2285.3,3.2078]
[1725716869880,0.43761,2285.3,2285.1,0.4481]
[1725716870183,0.43762,2285.2,2285.1,0.4481]
[1725716871078,0.43761,2285.3,2285.1,0.4481]
[1725716871275,0.43762,2285.2,2285.1,0.4481]
[1725716871696,3.02,2285.2,2284.9,3.2078]
[1725716871885,0.43767,2284.9,2284.8,0.4553]
[1725716872779,0.43769,2284.8,2284.7,0.4406]
[1725716877381,3.45769,2284.8,2284.7,0.4406]
[1725716878183,0.43777,2284.4,2284.3,3.2078]
[1725716879688,3.45776,2284.5,2284.3,3.2078]
[1725716880284,0.43777,2284.4,2284.3,3.2078]
[1725716880890,3.45776,2284.5,2284.3,3.2078]
[1725716881091,0.43774,2284.6,2284.3,3.64558]
[1725716881394,3.02,2284.7,2284.3,3.2078]
[1725716881584,3.02,2284.7,2284.6,3.2078]
[1725716881585,3.45771,2284.7,2284.6,3.2078]
[1725716881785,3.02,2284.7,2284.6,3.2078]
[1725716881985,0.43762,2285.2,2284.9,0.43767]
[1725716882193,0.43762,2285.2,2285.0,4.0962]
[1725716884793,0.43763,2285.1,2285.0,4.0962]
[1725716885485,0.43763,2285.2,2285.0,0.8884]
[1725716885686,5.60668121,2285.5,2285.0,4.0962]
[1725716885985,3.4537,2285.5,2285.2,3.2078]
[1725716886392,0.4376,2285.3,2285.0,0.8884]
[1725716886586,0.4376,2285.3,2285.2,3.2078]
[1725716886794,0.43763,2285.2,2285.0,0.8884]
[1725716886998,4.54763,2285.5,2285.0,0.8884]
[1725716886999,1.09395,2285.4,2285.0,0.8884]
[1725716887299,0.43763,2285.1,2285.0,0.8884]
[1725716887594,3.45763,2285.2,2285.0,1.32605]
[1725716887988,3.02,2285.2,2285.1,0.43763]
[1725716888196,0.43759,2285.4,2285.2,0.43762]
[1725716888494,0.43759,2285.4,2285.2,3.2078]
[1725716888702,0.4376,2285.3,2285.2,3.2078]
[1725716889093,0.43759,2285.4,2285.2,3.2078]
[1725716889294,0.43759,2285.4,2285.2,3.64541]
[1725716889694,0.43759,2285.4,2285.2,3.2078]
[1725716889902,0.4376,2285.3,2285.2,3.2078]
[1725716890498,0.43759,2285.4,2285.2,3.2078]
[1725716890998,0.43759,2285.4,2285.2,3.64541]
[1725716891393,0.43759,2285.4,2285.2,3.2078]
[1725716892096,0.43759,2285.4,2285.2,3.64542]
[1725716892905,0.4376,2285.3,2285.2,3.2078]
[1725716893108,0.43759,2285.4,2285.2,3.64542]
[1725716893605,0.4376,2285.3,2285.2,3.2078]
[1725716893793,0.43759,2285.4,2285.2,3.2078]
[1725716893998,0.43759,2285.4,2285.2,3.64541]
[1725716894893,7.97840958,2285.6,2285.2,3.2078]
[1725716895094,0.43756,2285.5,2285.3,0.43758]
[1725716895294,0.43756,2285.5,2285.4,3.6383]
[1725716896102,8.41595958,2285.6,2285.4,4.07588]
[1725716896298,0.43755,2285.6,2285.5,0.426]
[1725716896503,0.43755,2285.6,2285.5,0.86356]
[1725716896693,3.02,2285.7,2285.6,0.43754]
[1725716896898,0.43751,2285.8,2285.6,0.43753]
[1725716897096,0.43751,2285.8,2285.7,3.2078]
[1725716899505,3.45749,2285.9,2285.7,3.2078]
[1725716899697,3.45749,2285.9,2285.7,3.64532]
[1725716899897,0.4375,2285.8,2285.7,3.2078]
[1725716900097,0.4375,2285.9,2285.7,3.64532]
[1725716901205,0.4375,2285.8,2285.7,3.2078]
[1725716902106,4.07660723,2286.3,2285.7,3.2078]
[1725716902107,1.70098121,2286.4,2285.7,13.583]
[1725716902300,1.70098121,2286.4,2286.0,3.64525]
[1725716902301,0.43742,2286.3,2286.0,3.64525]
[1725716902501,0.4374,2286.3,2286.1,0.90034]
[1725716902801,0.4374,2286.3,2286.1,1.32454]
[1725716903404,0.4374,2286.4,2286.1,1.32454]
[1725716903605,0.4374,2286.4,2286.3,3.2078]
[1725716904918,4.98111,2286.6,2286.3,3.2078]
[1725716905111,0.43739,2286.4,2286.3,3.2078]
[1725716906610,4.98111,2286.6,2286.4,0.43737]
[1725716906611,3.02,2286.6,2286.4,0.43737]
[1725716906810,3.02,2286.6,2286.5,0.43737]
[1725716907113,3.45735,2286.6,2286.4,0.43737]
[1725716907616,0.43735,2286.6,2286.4,0.43738]
[1725716907910,3.02,2286.8,2286.5,0.43737]
[1725716907911,0.43733,2286.7,2286.5,0.43737]
[1725716908117,3.45731,2286.8,2286.6,3.6542]
[1725716908317,3.45731,2286.8,2286.6,4.09155]
[1725716908318,3.02,2286.8,2286.6,4.09155]
[1725716909112,3.45731,2286.8,2286.6,4.09155]
[1725716909813,3.02,2286.8,2286.7,3.2078]
[1725716910015,3.45731,2286.8,2286.7,3.2078]
[1725716910209,3.02,2286.8,2286.7,3.2078]
[1725716910822,0.4373,2286.9,2286.7,3.2078]
[1725716911717,0.43728,2287.0,2286.7,3.64513]
[1725716912221,5.0112078,2287.0,2286.7,3.663]
[1725716912517,3.45724,2287.2,2286.9,0.43729]
[1725716912918,3.45724,2287.2,2287.0,3.2078]
[1725716913123,3.45724,2287.2,2287.1,0.4251]
[1725716913717,7.82924,2287.2,2287.1,0.4251]
[1725716913921,3.45724,2287.2,2287.1,0.4251]
[1725716914921,7.82924,2287.2,2287.1,0.4251]
[1725716915613,3.45724,2287.2,2287.1,0.4251]
[1725716915812,7.82924,2287.2,2287.1,0.4251]
[1725716916922,7.82924,2287.2,2286.6,3.2078]
[1725716916923,0.43733,2286.7,2286.6,3.2078]
[1725716917113,0.4374,2286.4,2286.2,0.4614]
[1725716917319,0.4374,2286.3,2286.2,0.4614]
[1725716917515,0.43739,2286.4,2286.2,0.4614]
[1725716917718,0.43739,2286.4,2286.3,3.2078]
[1725716924621,0.43739,2286.4,2286.2,0.89882]
[1725716924833,0.43739,2286.4,2286.3,3.2078]
[1725716925126,0.43738,2286.5,2286.3,3.6452]
[1725716925420,0.9276,2286.6,2286.3,3.2078]
[1725716925421,0.43739,2286.4,2286.3,3.2078]
[1725716927624,0.4519,2286.8,2286.3,3.2078]
[1725716927625,0.4519,2286.8,2286.3,3.64519]
[1725716927829,0.4283,2286.7,2286.3,3.64519]
[1725716928024,0.43737,2286.5,2286.3,3.64519]
[1725716929328,0.43738,2286.5,2286.3,3.2078]
[1725716930232,0.43738,2286.5,2286.3,3.6452]
[1725716930930,0.43728,2287.0,2286.7,0.43731]
[1725716931129,0.43728,2287.0,2286.9,3.2078]
[1725716931531,0.43727,2287.0,2286.9,3.2078]
[1725716932336,0.88945,2287.2,2286.9,3.64508]
[1725716933332,0.4522,2287.2,2286.9,3.2078]
[1725716933832,0.88945,2287.2,2286.9,3.2078]
[1725716934030,0.43725,2287.1,2286.9,3.2078]
[1725716934231,0.88945,2287.2,2286.9,3.64509]
[1725716934432,0.88945,2287.2,2286.9,3.2078]
[1725716934433,0.43725,2287.1,2286.9,3.2078]
[1725716935021,0.43724,2287.2,2286.9,3.64508]
[1725716936829,2.79400121,2287.4,2286.9,3.2078]
[1725716937025,0.43727,2287.0,2286.9,3.2078]
[1725716937730,0.43726,2287.1,2286.9,3.2078]
[1725716937936,7.59986186,2287.3,2286.9,3.2078]
[1725716937937,6.50682186,2287.3,2286.9,3.2078]
[1725716938126,2.58186121,2287.5,2287.2,0.43722]
[1725716938322,2.58186121,2287.5,2287.3,0.8631]
[1725716938731,0.43718,2287.5,2287.3,0.8631]
[1725716939151,1.70098121,2287.6,2287.4,0.43719]
[1725716939436,1.70098121,2287.7,2287.5,3.64498]
[1725716939633,1.70098121,2287.8,2287.6,0.43716]
[1725716939835,0.87489,2288.0,2287.6,0.88354]
[1725716940025,0.87489,2288.0,2287.7,0.4395]
[1725716940226,0.87489,2288.0,2287.8,0.4718]
[1725716940427,2.13805121,2288.1,2287.8,0.4718]
[1725716940732,0.4371,2287.9,2287.8,0.4718]
[1725716942629,0.43712,2287.8,2287.7,3.6473]
[1725716942825,0.43712,2287.8,2287.7,0.4395]
[1725716943029,0.43715,2287.7,2287.5,0.4533]
[1725716943228,0.43713,2287.8,2287.5,0.4533]
[1725716943434,0.43713,2287.8,2287.7,3.2078]
[1725716946836,0.4371,2287.9,2287.7,3.2078]
[1725716947034,5.30323841,2288.0,2287.7,3.64492]
[1725716947341,0.43709,2288.0,2287.8,0.4335]
[1725716948036,2.16078121,2288.2,2287.8,0.87061]
[1725716948238,1.70098121,2288.2,2288.1,0.43706]
[1725716948439,1.98785538,2288.5,2288.0,3.2078]
[1725716948649,0.43703,2288.3,2288.1,0.4528]
[1725716948946,0.43701,2288.4,2288.1,0.4528]
[1725716949143,0.43701,2288.4,2288.2,0.4451]
[1725716949347,0.43701,2288.4,2288.3,3.2078]
[1725716949637,5.00617,2288.6,2288.3,3.64482]
[1725716949827,4.54697,2288.6,2288.3,3.2078]
[1725716950233,1.70098121,2288.9,2288.4,4.3696]
[1725716950441,8.83949911,2289.0,2288.6,3.64476]
[1725716950641,8.40259911,2289.0,2288.9,3.2078]
[1725716950944,8.83948911,2289.0,2288.9,3.2078]
[1725716951642,8.40259911,2289.0,2288.7,0.8927]
[1725716951848,0.43702,2288.3,2288.2,0.4437]
[1725716952035,16.27321837,2289.0,2288.1,3.2078]
[1725716952036,0.43704,2288.2,2288.1,3.2078]
[1725716952540,0.43704,2288.2,2288.0,3.6627]
[1725716952737,0.43706,2288.1,2288.0,3.6627]
[1725716953548,0.4371,2287.9,2287.8,0.4373]
[1725716953741,0.4371,2287.9,2287.7,3.2078]
[1725716954045,0.4371,2287.9,2287.7,3.6627]
[1725716954254,1.0926,2288.3,2287.7,3.2078]
[1725716954255,5.25598231,2287.8,2287.7,3.2078]
[1725716954543,0.43712,2287.8,2287.7,3.2078]
[1725716954841,0.43712,2287.8,2287.4,3.2078]
[1725716954842,0.43718,2287.5,2287.4,3.2078]
[1725716959739,0.43717,2287.6,2287.4,3.2078]
[1725716960147,5.28958819,2287.7,2287.4,3.64499]
[1725716960346,0.43714,2287.7,2287.4,3.64499]
[1725716960642,0.43714,2287.7,2287.4,3.2078]
[1725716960848,0.43716,2287.6,2287.4,3.2078]
[1725716961146,0.43715,2287.7,2287.4,3.2078]
[1725716961647,0.43716,2287.6,2287.4,3.2078]
[1725716961845,0.43715,2287.7,2287.4,3.2078]
[1725716963541,0.43709,2288.0,2287.6,0.43715]
[1725716963743,0.43711,2287.9,2287.5,1.34646]
[1725716963943,4.54708,2288.1,2287.7,3.64493]
[1725716964143,4.54707,2288.1,2287.8,0.4491]
[1725716964349,0.43708,2288.0,2287.8,0.4491]
[1725716964545,4.54707,2288.1,2287.8,0.4491]
[1725716965049,4.11,2288.1,2287.8,0.88621]
[1725716965249,0.43707,2288.1,2287.8,0.4491]
[1725716965846,0.43705,2288.2,2287.8,0.4491]
[1725716966042,0.89124,2288.3,2287.8,0.88621]
[1725716966241,5.10657228,2288.2,2287.8,0.88621]
[1725716966550,5.10657228,2288.2,2288.1,3.2078]
[1725716966551,4.66953228,2288.2,2288.1,3.2078]
[1725716967241,0.43701,2288.4,2288.1,3.2078]
[1725716967446,3.4731,2288.5,2288.1,3.2078]
[1725716967447,0.89679,2288.5,2288.3,3.2078]
[1725716967643,3.02,2288.7,2288.4,3.2078]
[1725716967945,0.43698,2288.5,2288.4,3.2078]
[1725716968148,5.44388952,2288.6,2288.4,3.2078]
[1725716968447,0.43695,2288.7,2288.4,3.2078]
[1725716968647,0.89674,2288.8,2288.4,3.2078]
[1725716968850,4.64873054,2288.7,2288.6,3.2078]
[1725716969051,8.83949911,2289.0,2288.6,3.2078]
[1725716969347,4.9306659,2288.9,2288.6,3.64476]
[1725716969745,8.40259911,2289.0,2288.6,3.64476]
[1725716970045,3.27410368,2289.1,2288.9,3.2078]
[1725716970251,1.57312247,2289.1,2288.9,3.2078]
[1725716970446,5.72641701,2289.0,2288.9,3.2078]
[1725716970650,4.59017454,2289.0,2288.9,3.2078]
[1725716971654,4.59017454,2289.0,2288.8,0.4633]
[1725716971655,8.95897454,2289.0,2288.8,0.4633]
[1725716971840,4.59017454,2289.0,2288.8,0.4633]
[1725716972252,7.3888,2288.9,2288.5,3.2078]
[1725716972453,0.43702,2288.3,2288.2,0.4633]
[1725716972642,0.43701,2288.4,2288.2,0.4633]
[1725716972948,4.60024309,2288.3,2288.2,0.4633]
[1725716973952,4.60024309,2288.3,2288.2,3.6711]
[1725716974152,0.43705,2288.2,2288.0,0.4708]
[1725716974348,5.03727309,2288.3,2288.0,0.4708]
[1725716975860,6.17351556,2288.3,2288.0,0.4708]
[1725716976457,1.57328247,2288.2,2287.8,3.6431]
[1725716976771,1.57330247,2288.2,2287.8,3.6431]
[1725716977060,0.43706,2288.2,2287.8,3.6431]
[1725716977648,0.43704,2288.3,2287.8,3.6431]
[1725716978063,5.10286038,2288.3,2287.8,3.6431]
[1725716978653,5.10286038,2288.3,2288.1,3.2078]
[1725716979863,4.66582038,2288.3,2288.1,3.2078]
[1725716980667,5.10284038,2288.3,2288.1,3.2078]
[1725716980960,4.66582038,2288.3,2288.1,3.2078]
[1725716981160,4.66582038,2288.3,2288.2,0.43704]
[1725716981353,1.13624247,2288.6,2288.3,0.43701]
[1725716981558,1.13624247,2288.7,2288.4,3.6662]
[1725716981761,4.58564247,2288.8,2288.4,3.6662]
[1725716981956,5.02257247,2288.8,2288.4,3.6662]
[1725716982765,4.58564247,2288.8,2288.4,4.1032]
[1725716983062,1.13624247,2288.9,2288.7,3.2078]
[1725716983468,8.26624247,2289.0,2288.7,3.2078]
[1725716984175,8.26624247,2289.0,2288.8,3.2078]
[1725716984468,5.24624247,2289.0,2288.8,3.2078]
[1725716984763,4.11,2289.0,2288.8,3.2078]
[1725716986266,1.57311247,2289.1,2288.8,3.2078]
[1725716986669,1.13624247,2289.1,2288.8,3.2078]
[1725716987069,4.59310247,2289.2,2288.8,3.2078]
[1725716987769,4.15624247,2289.2,2288.8,3.2078]
[1725716988068,4.59309247,2289.2,2288.8,3.2078]
[1725716989163,1.13624247,2289.3,2288.8,3.2078]
[1725716989365,1.13624247,2289.4,2289.1,3.2078]
[1725716989564,1.60354247,2289.6,2289.3,0.43683]
[1725716989760,0.4673,2289.6,2289.4,3.6491]
[1725716989968,4.80632478,2289.5,2289.4,3.6491]
[1725716991666,3.91205,2289.8,2289.4,3.6491]
[1725716992170,5.46757687,2289.7,2289.4,3.6491]
[1725716992473,7.16856808,2289.7,2289.4,0.4413]
[1725716992666,6.73179808,2289.7,2289.4,3.6491]
[1725716992867,7.16856808,2289.7,2289.4,3.6491]
[1725716993568,5.46758687,2289.7,2289.4,3.6491]
[1725716995968,5.03081687,2289.7,2289.4,3.6491]
[1725716996572,5.03081687,2289.7,2289.4,4.08591]
[1725716996773,0.43672,2289.9,2289.5,0.4588]
[1725716997076,5.17014037,2289.9,2289.7,3.2078]